[Event "*** SCC Grand Prix: Titled Tuesday Blitz"]
[Site "Chess.com"]
[Date "2020.07.14"]
[Round "6"]
[White "Sam_ChessMood"]
[Black "Vesper2018"]
[Result "1/2-1/2"]
[WhiteElo "2803"]
[BlackElo "2590"]
[TimeControl "180+1"]
[EndTime "11:09:55 PDT"]
[Termination "Game drawn by agreement"]

1. e4 {[%clk 0:03:00.9]} 1... c5 {[%clk 0:02:59.8]} 2. Nc3 {[%clk 0:03:01.1]}
2... d6 {[%clk 0:02:59.6]} 3. f4 {[%clk 0:02:59.2]} 3... g6 {[%clk 0:02:57.3]}
4. Nf3 {[%clk 0:02:52.4]} 4... Bg7 {[%clk 0:02:54.9]} 5. Bb5+ {[%clk 0:02:52.1]}
5... Bd7 {[%clk 0:02:51.5]} 6. Bc4 {[%clk 0:02:51.9]} 6... Nc6 {[%clk
0:02:47.5]} 7. O-O {[%clk 0:02:48]} 7... e6 {[%clk 0:02:40.6]} 8. f5 {[%clk
0:02:40]} 8... Nf6 {[%clk 0:02:31.6]} 9. d3 {[%clk 0:02:38.6]} 9... O-O {[%clk
0:02:26.5]} 10. fxg6 {[%clk 0:02:28]} 10... fxg6 {[%clk 0:02:24.7]} 11. e5
{[%clk 0:01:58]} 11... dxe5 {[%clk 0:02:09.4]} 12. Bg5 {[%clk 0:01:51.3]} 12...
h6 {[%clk 0:01:46.5]} 13. Bh4 {[%clk 0:01:41.1]} 13... g5 {[%clk 0:01:46.3]} 14.
Bg3 {[%clk 0:01:41]} 14... Nh5 {[%clk 0:01:37.6]} 15. Ne4 {[%clk 0:01:41]} 15...
Nxg3 {[%clk 0:01:24.2]} 16. hxg3 {[%clk 0:01:40.6]} 16... Qe7 {[%clk 0:01:21.2]}
17. a3 {[%clk 0:01:33.7]} 17... Nd4 {[%clk 0:01:19.1]} 18. Nxd4 {[%clk
0:01:32.9]} 18... exd4 {[%clk 0:01:17]} 19. a4 {[%clk 0:01:12.4]} 19... Rxf1+
{[%clk 0:01:07.5]} 20. Qxf1 {[%clk 0:01:12.3]} 20... Bc6 {[%clk 0:00:57.4]} 21.
Qf5 {[%clk 0:01:05]} 21... b6 {[%clk 0:00:34.4]} 22. b3 {[%clk 0:00:16.1]} 22...
Re8 {[%clk 0:00:29.9]} 23. Rf1 {[%clk 0:00:15.2]} 23... Kh8 {[%clk 0:00:24.6]}
24. Qg6 {[%clk 0:00:15.4]} 24... Rf8 {[%clk 0:00:15.2]} 25. Rxf8+ {[%clk
0:00:08.6]} 25... Qxf8 {[%clk 0:00:15.2]} 26. Qxe6 {[%clk 0:00:07.5]} 26... Bxe4
{[%clk 0:00:15.1]} 27. Qxe4 {[%clk 0:00:07.5]} 27... Bf6 {[%clk 0:00:09.4]} 28.
Bd5 {[%clk 0:00:07.2]} 28... Qe7 {[%clk 0:00:09.4]} 29. Qg6 {[%clk 0:00:05.8]}
29... Bg7 {[%clk 0:00:08.4]} 30. Be4 {[%clk 0:00:06.1]} 30... Kg8 {[%clk
0:00:08.7]} 31. Qf5 {[%clk 0:00:06]} 31... a5 {[%clk 0:00:03.7]} 32. Qc8+ {[%clk
0:00:05.9]} 32... Kf7 {[%clk 0:00:02.7]} 33. Qc6 {[%clk 0:00:05]} 33... Qf6
{[%clk 0:00:02.3]} 34. Bd5+ {[%clk 0:00:05.4]} 34... Ke7 {[%clk 0:00:02.4]} 35.
Qc7+ {[%clk 0:00:05.5]} 35... Kf8 {[%clk 0:00:02.9]} 36. Qc8+ {[%clk 0:00:04.6]}
36... Ke7 {[%clk 0:00:03.3]} 37. Qc7+ {[%clk 0:00:04.1]} 37... Kf8 {[%clk
0:00:03.4]} 38. Be4 {[%clk 0:00:04.6]} 38... Qe5 {[%clk 0:00:03.3]} 39. Qd8+
{[%clk 0:00:05]} 39... Kf7 {[%clk 0:00:03.3]} 40. Kh2 {[%clk 0:00:05.3]} 40...
h5 {[%clk 0:00:03]} 41. Kh3 {[%clk 0:00:04.7]} 41... g4+ {[%clk 0:00:02.6]} 42.
Kh2 {[%clk 0:00:05.2]} 42... h4 {[%clk 0:00:03.1]} 43. Qxh4 {[%clk 0:00:04.8]}
43... Qe6 {[%clk 0:00:02.3]} 44. Qh5+ {[%clk 0:00:04.7]} 44... Kf8 {[%clk
0:00:02.6]} 45. Qh4 {[%clk 0:00:04]} 45... Bf6 {[%clk 0:00:02]} 46. Qh7 {[%clk
0:00:03.2]} 46... Bg7 {[%clk 0:00:01.7]} 47. Bf5 {[%clk 0:00:03.6]} 47... Qe5
{[%clk 0:00:02.1]} 48. Bxg4 {[%clk 0:00:03.4]} 48... Qg5 {[%clk 0:00:01.9]} 49.
Qf5+ {[%clk 0:00:02.9]} 49... Qxf5 {[%clk 0:00:02.1]} 50. Bxf5 {[%clk
0:00:03.8]} 50... Ke7 {[%clk 0:00:02.6]} 51. Kh3 {[%clk 0:00:04.7]} 51... Kf6
{[%clk 0:00:02.6]} 52. Kg4 {[%clk 0:00:05.3]} 52... Bh6 {[%clk 0:00:02.9]} 53.
Be4 {[%clk 0:00:05.6]} 53... Bd2 {[%clk 0:00:02.1]} 54. Bc6 {[%clk 0:00:05.7]}
54... Bc1 {[%clk 0:00:02.5]} 55. Bb5 {[%clk 0:00:06.1]} 55... Bd2 {[%clk
0:00:03.2]} 56. Bc4 {[%clk 0:00:06.5]} 56... Bc1 {[%clk 0:00:03.9]} 57. Kf3
{[%clk 0:00:06.3]} 57... Bd2 {[%clk 0:00:04.6]} 58. Ke4 {[%clk 0:00:06.4]} 58...
Kg5 {[%clk 0:00:02.2]} 59. Be6 {[%clk 0:00:05.7]} 59... Bc1 {[%clk 0:00:01.3]}
60. Kd5 {[%clk 0:00:05.9]} 60... Bd2 {[%clk 0:00:01.8]} 61. Kc6 {[%clk
0:00:06.2]} 61... Be1 {[%clk 0:00:02.2]} 62. g4 {[%clk 0:00:06]} 62... Bb4
{[%clk 0:00:02.6]} 63. Kxb6 {[%clk 0:00:06.3]} 63... Kf6 {[%clk 0:00:02.5]} 64.
Bf5 {[%clk 0:00:06.1]} 64... Kg5 {[%clk 0:00:02.9]} 65. Kc6 {[%clk 0:00:06.5]}
65... Kf6 {[%clk 0:00:03.3]} 66. Kd5 {[%clk 0:00:06.9]} 66... Kg5 {[%clk
0:00:03.3]} 67. Ke5 {[%clk 0:00:07.2]} 67... Ba3 {[%clk 0:00:03.1]} 68. Ke4
{[%clk 0:00:07.6]} 68... Bb4 {[%clk 0:00:03.5]} 69. Kd5 {[%clk 0:00:07.9]} 69...
Ba3 {[%clk 0:00:04]} 70. Kc4 {[%clk 0:00:08.2]} 70... Bb4 {[%clk 0:00:04.5]} 71.
Kb5 {[%clk 0:00:08.5]} 71... Kf6 {[%clk 0:00:04.4]} 72. Be4 {[%clk 0:00:09]}
72... Kg5 {[%clk 0:00:04.9]} 73. Bf3 {[%clk 0:00:09.3]} 73... Kf6 {[%clk
0:00:05.3]} 74. Bd1 {[%clk 0:00:09.2]} 74... Kg5 {[%clk 0:00:05.7]} 75. Kc6
{[%clk 0:00:09.6]} 75... Kf4 {[%clk 0:00:06.2]} 76. Kd5 {[%clk 0:00:09.7]} 76...
Kg5 {[%clk 0:00:06.5]} 77. Ke5 {[%clk 0:00:09.9]} 77... Ba3 {[%clk 0:00:06.8]}
78. Ke4 {[%clk 0:00:09.9]} 78... Bb4 {[%clk 0:00:07.3]} 79. Kf3 {[%clk
0:00:09.7]} 79... Ba3 {[%clk 0:00:07.9]} 80. Be2 {[%clk 0:00:10]} 80... Bb4
{[%clk 0:00:08.6]} 81. Bf1 {[%clk 0:00:10.4]} 81... Ba3 {[%clk 0:00:09.3]} 82.
g3 {[%clk 0:00:10.8]} 82... Bb4 {[%clk 0:00:10.1]} 83. Bh3 {[%clk 0:00:10.8]}
83... Ba3 {[%clk 0:00:10.8]} 84. Ke2 {[%clk 0:00:11.1]} 84... Bb4 {[%clk
0:00:11.5]} 85. Kd1 {[%clk 0:00:11.5]} 85... Ba3 {[%clk 0:00:12.2]} 86. Kd2
{[%clk 0:00:09.3]} 86... Bb4+ {[%clk 0:00:12.5]} 87. Kc1 {[%clk 0:00:09.7]}
87... Kf6 {[%clk 0:00:12.8]} 88. Bg2 {[%clk 0:00:09]} 88... Kg5 {[%clk
0:00:13.5]} 89. Bf3 {[%clk 0:00:09.5]} 89... Kf6 {[%clk 0:00:14.2]} 90. Kd1
{[%clk 0:00:09.4]} 90... Kg5 {[%clk 0:00:14.9]} 91. Ke2 {[%clk 0:00:07.9]} 91...
Kf6 {[%clk 0:00:15.6]} 92. Be4 {[%clk 0:00:08.3]} 92... Kg5 {[%clk 0:00:16.3]}
93. Kf3 {[%clk 0:00:08.8]} 93... Ba3 {[%clk 0:00:16.3]} 94. Bf5 {[%clk
0:00:08.7]} 94... Bb4 {[%clk 0:00:16.7]} 95. Ke4 {[%clk 0:00:09]} 95... Ba3
{[%clk 0:00:17.1]} 96. Kd5 {[%clk 0:00:09.4]} 96... Bb4 {[%clk 0:00:17.5]} 97.
Kc4 {[%clk 0:00:09.7]} 97... Kf6 {[%clk 0:00:17.8]} 98. c3 {[%clk 0:00:06.8]}
98... dxc3 {[%clk 0:00:16.6]} 99. d4 {[%clk 0:00:07]} 99... cxd4 {[%clk
0:00:16.3]} 100. Kxd4 {[%clk 0:00:07.4]} 100... Kg5 {[%clk 0:00:16.3]} 101. Kd3
{[%clk 0:00:07.1]} 101... Kf6 {[%clk 0:00:16.4]} 102. Kc2 {[%clk 0:00:07.6]}
102... Kg5 {[%clk 0:00:16.9]} 103. Kd3 {[%clk 0:00:06]} 1/2-1/2

[Event "*** SCC Grand Prix: Titled Tuesday Blitz"]
[Site "Chess.com"]
[Date "2020.07.14"]
[Round "6"]
[White "SamuelGhimpu2003"]
[Black "Kavyev_Ruslan"]
[Result "1/2-1/2"]
[WhiteElo "2598"]
[BlackElo "2456"]
[TimeControl "180+1"]
[EndTime "11:10:10 PDT"]
[Termination "Game drawn - insufficient material"]

1. d4 {[%clk 0:03:00.9]} 1... Nf6 {[%clk 0:03:00]} 2. c4 {[%clk 0:03:00.6]} 2...
g6 {[%clk 0:03:00.3]} 3. Nc3 {[%clk 0:03:00.5]} 3... d5 {[%clk 0:03:00.9]} 4.
cxd5 {[%clk 0:03:01.4]} 4... Nxd5 {[%clk 0:03:01.8]} 5. e4 {[%clk 0:03:01.7]}
5... Nxc3 {[%clk 0:03:02.5]} 6. bxc3 {[%clk 0:03:02.6]} 6... Bg7 {[%clk
0:03:03.4]} 7. Nf3 {[%clk 0:03:02.4]} 7... c5 {[%clk 0:03:02.8]} 8. Be3 {[%clk
0:03:02.8]} 8... Qa5 {[%clk 0:03:01.6]} 9. Nd2 {[%clk 0:03:02.7]} 9... cxd4
{[%clk 0:02:49.3]} 10. Nc4 {[%clk 0:03:01.5]} 10... Qc7 {[%clk 0:02:33.5]} 11.
cxd4 {[%clk 0:02:59.2]} 11... Nd7 {[%clk 0:02:32]} 12. Rc1 {[%clk 0:02:56.7]}
12... O-O {[%clk 0:02:30.2]} 13. Be2 {[%clk 0:02:52.7]} 13... b5 {[%clk
0:02:16.8]} 14. Ne5 {[%clk 0:02:41.7]} 14... Qa5+ {[%clk 0:02:14]} 15. Bd2
{[%clk 0:02:41.9]} 15... Qxa2 {[%clk 0:02:13.9]} 16. Nc6 {[%clk 0:02:39.1]}
16... Re8 {[%clk 0:02:07.2]} 17. O-O {[%clk 0:02:34]} 17... a6 {[%clk
0:01:58.1]} 18. d5 {[%clk 0:02:16.9]} 18... Nb6 {[%clk 0:01:34.3]} 19. Bb4
{[%clk 0:01:59.5]} 19... e6 {[%clk 0:01:28.2]} 20. d6 {[%clk 0:01:59.6]} 20...
Bd7 {[%clk 0:01:27.5]} 21. Ne7+ {[%clk 0:01:55.3]} 21... Kh8 {[%clk 0:01:26.9]}
22. Rc7 {[%clk 0:01:55.7]} 22... a5 {[%clk 0:01:17.5]} 23. Bc5 {[%clk
0:01:53.5]} 23... Na4 {[%clk 0:01:13.8]} 24. Rxd7 {[%clk 0:01:38.3]} 24... Nxc5
{[%clk 0:01:11.6]} 25. Rc7 {[%clk 0:01:38.1]} 25... Nxe4 {[%clk 0:01:11.6]} 26.
Bf3 {[%clk 0:01:38.5]} 26... Nc3 {[%clk 0:00:53.1]} 27. Rxc3 {[%clk 0:01:27.2]}
27... Bxc3 {[%clk 0:00:54]} 28. d7 {[%clk 0:01:27.6]} 28... Rad8 {[%clk
0:00:45.8]} 29. dxe8=Q+ {[%clk 0:01:22.7]} 29... Rxe8 {[%clk 0:00:46.7]} 30. Qd7
{[%clk 0:01:22.8]} 30... Rf8 {[%clk 0:00:44.1]} 31. Qxb5 {[%clk 0:01:16.9]}
31... a4 {[%clk 0:00:40.3]} 32. Qc5 {[%clk 0:01:05.6]} 32... Bg7 {[%clk
0:00:37.8]} 33. Nc6 {[%clk 0:00:44]} 33... a3 {[%clk 0:00:38]} 34. Na5 {[%clk
0:00:40.9]} 34... Qb2 {[%clk 0:00:35]} 35. Nc4 {[%clk 0:00:38.9]} 35... Qc3
{[%clk 0:00:35.3]} 36. Qxa3 {[%clk 0:00:20.4]} 36... Qxc4 {[%clk 0:00:35.4]} 37.
Qc1 {[%clk 0:00:20.1]} 37... Qd4 {[%clk 0:00:34.6]} 38. Qe3 {[%clk 0:00:18.5]}
38... Qb4 {[%clk 0:00:32.2]} 39. g3 {[%clk 0:00:18.2]} 39... h5 {[%clk
0:00:30.9]} 40. h4 {[%clk 0:00:17.6]} 40... Rd8 {[%clk 0:00:30.4]} 41. Rd1
{[%clk 0:00:15.5]} 41... Rxd1+ {[%clk 0:00:27.9]} 42. Bxd1 {[%clk 0:00:16.4]}
42... Bd4 {[%clk 0:00:27.7]} 43. Qe2 {[%clk 0:00:15]} 43... Kg7 {[%clk 0:00:26]}
44. Kg2 {[%clk 0:00:15.4]} 44... Qc3 {[%clk 0:00:26.1]} 45. Bc2 {[%clk
0:00:14.6]} 45... Qb2 {[%clk 0:00:24.6]} 46. Bd3 {[%clk 0:00:13.5]} 46... Qb6
{[%clk 0:00:24]} 47. Be4 {[%clk 0:00:12.5]} 47... e5 {[%clk 0:00:24.1]} 48. Bd5
{[%clk 0:00:06.5]} 48... f5 {[%clk 0:00:23.5]} 49. f4 {[%clk 0:00:06.8]} 49...
e4 {[%clk 0:00:23.4]} 50. Qc2 {[%clk 0:00:06]} 50... Bc5 {[%clk 0:00:15.7]} 51.
Qc3+ {[%clk 0:00:04.8]} 51... Bd4 {[%clk 0:00:15.9]} 52. Qc8 {[%clk 0:00:04.4]}
52... Qb2+ {[%clk 0:00:15.5]} 53. Kh3 {[%clk 0:00:05]} 53... Qb6 {[%clk
0:00:02.4]} 54. Qb7+ {[%clk 0:00:04.6]} 54... Qxb7 {[%clk 0:00:02.1]} 55. Bxb7
{[%clk 0:00:05.5]} 55... Kf6 {[%clk 0:00:03]} 56. Kg2 {[%clk 0:00:05.9]} 56...
Ke7 {[%clk 0:00:02.9]} 57. Bd5 {[%clk 0:00:05.6]} 57... Kf6 {[%clk 0:00:01.9]}
58. Kf1 {[%clk 0:00:05.1]} 58... Bc5 {[%clk 0:00:02.8]} 59. Ke2 {[%clk
0:00:05.3]} 59... Bb6 {[%clk 0:00:03.5]} 60. Bc4 {[%clk 0:00:05.5]} 60... Ba5
{[%clk 0:00:04]} 61. Bb3 {[%clk 0:00:05.7]} 61... Ke7 {[%clk 0:00:04.6]} 62. Bc4
{[%clk 0:00:05.4]} 62... Bb6 {[%clk 0:00:05.5]} 63. Bb3 {[%clk 0:00:05.4]} 63...
Bc5 {[%clk 0:00:06.4]} 64. Bc4 {[%clk 0:00:05.6]} 64... Bd4 {[%clk 0:00:07.3]}
65. Bb3 {[%clk 0:00:05.7]} 65... Bc3 {[%clk 0:00:07.4]} 66. Bc4 {[%clk
0:00:05.9]} 66... Bf6 {[%clk 0:00:07.4]} 67. Bb3 {[%clk 0:00:06]} 67... Bg7
{[%clk 0:00:06.6]} 68. Bc4 {[%clk 0:00:06.1]} 68... Bf8 {[%clk 0:00:06.2]} 69.
Bb3 {[%clk 0:00:05.7]} 69... Kf6 {[%clk 0:00:07]} 70. Bc4 {[%clk 0:00:06]} 70...
Bc5 {[%clk 0:00:07.7]} 71. Bb3 {[%clk 0:00:06.3]} 71... Bg1 {[%clk 0:00:04.1]}
72. Bc4 {[%clk 0:00:04.8]} 72... Ke7 {[%clk 0:00:04.4]} 73. Bb3 {[%clk
0:00:04.2]} 73... Bh2 {[%clk 0:00:04]} 74. Kf2 {[%clk 0:00:03.9]} 74... e3+
{[%clk 0:00:04.6]} 75. Kxe3 {[%clk 0:00:02.5]} 75... Bxg3 {[%clk 0:00:04.6]} 76.
Kf3 {[%clk 0:00:03.4]} 76... Bxh4 {[%clk 0:00:05]} 77. Bc4 {[%clk 0:00:03.4]}
77... Be1 {[%clk 0:00:05.3]} 78. Bb3 {[%clk 0:00:03.6]} 78... Kf6 {[%clk
0:00:03.6]} 79. Ba4 {[%clk 0:00:03.7]} 79... Bd2 {[%clk 0:00:04.2]} 80. Be8
{[%clk 0:00:03.2]} 80... Ba5 {[%clk 0:00:04.7]} 81. Kg3 {[%clk 0:00:03.2]} 81...
Bc7 {[%clk 0:00:05.2]} 82. Kf3 {[%clk 0:00:03.5]} 82... Bd6 {[%clk 0:00:05.9]}
83. Ke3 {[%clk 0:00:03.8]} 83... h4 {[%clk 0:00:05.5]} 84. Kf3 {[%clk
0:00:04.1]} 84... h3 {[%clk 0:00:05.9]} 85. Kg3 {[%clk 0:00:04.1]} 85... h2
{[%clk 0:00:06]} 86. Kxh2 {[%clk 0:00:05]} 86... Bxf4+ {[%clk 0:00:06.1]} 87.
Kg2 {[%clk 0:00:05.9]} 87... g5 {[%clk 0:00:06.7]} 88. Bb5 {[%clk 0:00:05.5]}
88... Ke5 {[%clk 0:00:07]} 89. Be2 {[%clk 0:00:06.3]} 89... Be3 {[%clk
0:00:07.2]} 90. Bd1 {[%clk 0:00:06.3]} 90... Kf4 {[%clk 0:00:07.5]} 91. Be2
{[%clk 0:00:06.4]} 91... g4 {[%clk 0:00:07.4]} 92. Bd1 {[%clk 0:00:06.9]} 92...
Kg5 {[%clk 0:00:08]} 93. Be2 {[%clk 0:00:07.7]} 93... Bc5 {[%clk 0:00:08.5]} 94.
Bd1 {[%clk 0:00:08.6]} 94... Kf4 {[%clk 0:00:08.9]} 95. Be2 {[%clk 0:00:08.8]}
95... Ke3 {[%clk 0:00:09.5]} 96. Bd1 {[%clk 0:00:08.4]} 96... Kd2 {[%clk
0:00:09.9]} 97. Bb3 {[%clk 0:00:06.2]} 97... f4 {[%clk 0:00:10.2]} 98. Be6
{[%clk 0:00:05.8]} 98... f3+ {[%clk 0:00:10.6]} 99. Kg3 {[%clk 0:00:05.6]} 99...
f2 {[%clk 0:00:10.2]} 100. Bc4 {[%clk 0:00:06]} 100... Kc3 {[%clk 0:00:09.5]}
101. Ba6 {[%clk 0:00:05.9]} 101... Kd2 {[%clk 0:00:09.9]} 102. Kxg4 {[%clk
0:00:05.9]} 102... Ke1 {[%clk 0:00:10.8]} 103. Kf3 {[%clk 0:00:06.4]} 103... Bd4
{[%clk 0:00:10.5]} 104. Bb5 {[%clk 0:00:06.4]} 104... f1=Q+ {[%clk 0:00:11.3]}
105. Bxf1 {[%clk 0:00:06.7]} 1/2-1/2

[Event "*** SCC Grand Prix: Titled Tuesday Blitz"]
[Site "Chess.com"]
[Date "2020.07.14"]
[Round "7"]
[White "Niclox"]
[Black "TokChess"]
[Result "1-0"]
[WhiteElo "2719"]
[BlackElo "2434"]
[TimeControl "180+1"]
[EndTime "11:13:27 PDT"]
[Termination "Niclox won by resignation"]

1. e4 {[%clk 0:03:00.9]} 1... c5 {[%clk 0:02:58.5]} 2. Nf3 {[%clk 0:03:00.5]}
2... d6 {[%clk 0:02:58.4]} 3. Bc4 {[%clk 0:03:00]} 3... Nf6 {[%clk 0:02:57.4]}
4. e5 {[%clk 0:03:00.3]} 4... dxe5 {[%clk 0:02:56.8]} 5. Nxe5 {[%clk 0:03:01.2]}
5... e6 {[%clk 0:02:57.3]} 6. Qe2 {[%clk 0:03:01.3]} 6... Nbd7 {[%clk
0:02:56.9]} 7. Nxf7 {[%clk 0:03:00.9]} 7... Kxf7 {[%clk 0:02:57]} 8. Qxe6+
{[%clk 0:02:57.8]} 8... Kg6 {[%clk 0:02:57.2]} 9. h4 {[%clk 0:02:58.3]} 9... h5
{[%clk 0:02:49.1]} 10. Bd3+ {[%clk 0:02:57.7]} 10... Kh6 {[%clk 0:02:49.3]} 11.
Qe3+ {[%clk 0:02:58.6]} 1-0

[Event "*** SCC Grand Prix: Titled Tuesday Blitz"]
[Site "Chess.com"]
[Date "2020.07.14"]
[Round "7"]
[White "Tashik"]
[Black "RusPakhom"]
[Result "1-0"]
[WhiteElo "2410"]
[BlackElo "2276"]
[TimeControl "180+1"]
[EndTime "11:13:39 PDT"]
[Termination "Tashik won by resignation"]

1. c4 {[%clk 0:03:00.9]} 1... e5 {[%clk 0:02:57.9]} 2. Nc3 {[%clk 0:03:00.9]}
2... d6 {[%clk 0:02:58.2]} 3. Nf3 {[%clk 0:03:01.1]} 3... f5 {[%clk 0:02:57.9]}
4. g3 {[%clk 0:03:00.8]} 4... Nf6 {[%clk 0:02:58.3]} 5. d4 {[%clk 0:02:59.2]}
5... e4 {[%clk 0:02:57.9]} 6. Nh4 {[%clk 0:02:58.9]} 6... g6 {[%clk 0:02:57.9]}
7. Bg2 {[%clk 0:02:56]} 7... g5 {[%clk 0:02:56.8]} 8. Bxg5 {[%clk 0:02:54.9]}
8... Bg7 {[%clk 0:02:56]} 9. O-O {[%clk 0:02:53.3]} 9... Be6 {[%clk 0:02:55.9]}
10. d5 {[%clk 0:02:51]} 10... Bc8 {[%clk 0:02:54.7]} 11. f3 {[%clk 0:02:51.3]}
11... O-O {[%clk 0:02:52]} 12. fxe4 {[%clk 0:02:50.1]} 12... Nxe4 {[%clk
0:02:51.5]} 13. Bxd8 {[%clk 0:02:48.6]} 1-0

[Event "*** SCC Grand Prix: Titled Tuesday Blitz"]
[Site "Chess.com"]
[Date "2020.07.14"]
[Round "7"]
[White "Stormeman100100"]
[Black "timator"]
[Result "1-0"]
[WhiteElo "2457"]
[BlackElo "2587"]
[TimeControl "180+1"]
[EndTime "11:14:17 PDT"]
[Termination "Stormeman100100 won by resignation"]

1. e4 {[%clk 0:03:00.9]} 1... e5 {[%clk 0:02:59.8]} 2. Nf3 {[%clk 0:02:59.6]}
2... Nc6 {[%clk 0:03:00.2]} 3. Bb5 {[%clk 0:02:54.8]} 3... a6 {[%clk 0:03:00.4]}
4. Ba4 {[%clk 0:02:52.7]} 4... Nf6 {[%clk 0:02:58.6]} 5. O-O {[%clk 0:02:52.7]}
5... b5 {[%clk 0:02:58.9]} 6. Bb3 {[%clk 0:02:52.4]} 6... Be7 {[%clk 0:02:59.8]}
7. Re1 {[%clk 0:02:49.5]} 7... O-O {[%clk 0:02:59.5]} 8. a4 {[%clk 0:02:48.8]}
8... b4 {[%clk 0:02:58.2]} 9. d4 {[%clk 0:02:47.1]} 9... d6 {[%clk 0:02:58.6]}
10. dxe5 {[%clk 0:02:46.5]} 10... Nxe5 {[%clk 0:02:56.5]} 11. Nxe5 {[%clk
0:02:45.1]} 11... dxe5 {[%clk 0:02:57.4]} 12. Qxd8 {[%clk 0:02:45.5]} 12... Rxd8
{[%clk 0:02:56.8]} 13. Nd2 {[%clk 0:02:45.5]} 13... Rd4 {[%clk 0:02:43.9]} 14.
Nf3 {[%clk 0:02:34.7]} 14... Rxe4 {[%clk 0:02:43.4]} 15. Rxe4 {[%clk 0:02:33.3]}
15... Nxe4 {[%clk 0:02:44.3]} 16. Bd5 {[%clk 0:02:28.2]} 1-0

[Event "*** SCC Grand Prix: Titled Tuesday Blitz"]
[Site "Chess.com"]
[Date "2020.07.14"]
[Round "7"]
[White "Ze-Pequeno"]
[Black "GAusal"]
[Result "0-1"]
[WhiteElo "2241"]
[BlackElo "2072"]
[TimeControl "180+1"]
[EndTime "11:14:57 PDT"]
[Termination "GAusal won by resignation"]

1. e4 {[%clk 0:02:58.6]} 1... e5 {[%clk 0:02:59.4]} 2. Nf3 {[%clk 0:02:58.4]}
2... Nc6 {[%clk 0:02:58.8]} 3. Bb5 {[%clk 0:02:58.7]} 3... a6 {[%clk 0:02:57]}
4. Ba4 {[%clk 0:02:58.8]} 4... b5 {[%clk 0:02:55.2]} 5. Bb3 {[%clk 0:02:58.3]}
5... f5 {[%clk 0:02:54.9]} 6. d4 {[%clk 0:02:41.8]} 6... exd4 {[%clk 0:02:49.8]}
7. exf5 {[%clk 0:02:13.6]} 7... Qe7+ {[%clk 0:02:42.8]} 8. Kf1 {[%clk
0:02:03.6]} 8... Bb7 {[%clk 0:02:38.1]} 9. Bg5 {[%clk 0:02:00.1]} 9... Nf6
{[%clk 0:02:33.4]} 10. Nxd4 {[%clk 0:01:53.9]} 10... Nxd4 {[%clk 0:02:26.8]} 11.
Qxd4 {[%clk 0:01:53.3]} 11... c5 {[%clk 0:02:24]} 0-1

[Event "*** SCC Grand Prix: Titled Tuesday Blitz"]
[Site "Chess.com"]
[Date "2020.07.14"]
[Round "7"]
[White "EvgenyT"]
[Black "Eternauta2400"]
[Result "1/2-1/2"]
[WhiteElo "2910"]
[BlackElo "2738"]
[TimeControl "180+1"]
[EndTime "11:15:02 PDT"]
[Termination "Game drawn by repetition"]

1. c4 {[%clk 0:03:00.9]} 1... e6 {[%clk 0:02:59.7]} 2. Nc3 {[%clk 0:03:00.2]}
2... d5 {[%clk 0:02:59.5]} 3. d4 {[%clk 0:03:00.2]} 3... Nf6 {[%clk 0:02:58.8]}
4. cxd5 {[%clk 0:02:58.3]} 4... exd5 {[%clk 0:02:59.7]} 5. Bg5 {[%clk 0:02:58]}
5... Be7 {[%clk 0:02:59.1]} 6. e3 {[%clk 0:02:57.3]} 6... O-O {[%clk 0:02:57.9]}
7. Bd3 {[%clk 0:02:56.6]} 7... Nbd7 {[%clk 0:02:57.5]} 8. Qc2 {[%clk 0:02:54.9]}
8... Re8 {[%clk 0:02:55.9]} 9. Nf3 {[%clk 0:02:40.3]} 9... c6 {[%clk 0:02:55.8]}
10. O-O {[%clk 0:02:39.1]} 10... Nf8 {[%clk 0:02:55.9]} 11. Rab1 {[%clk
0:02:38.6]} 11... Ng6 {[%clk 0:02:55.1]} 12. b4 {[%clk 0:02:32.9]} 12... Bd6
{[%clk 0:02:55]} 13. b5 {[%clk 0:02:15]} 13... h6 {[%clk 0:02:54.8]} 14. Bxf6
{[%clk 0:02:14.5]} 14... Qxf6 {[%clk 0:02:55.7]} 15. bxc6 {[%clk 0:02:13.4]}
15... bxc6 {[%clk 0:02:56.6]} 16. Rfe1 {[%clk 0:01:50.3]} 16... Bg4 {[%clk
0:02:56.3]} 17. Be2 {[%clk 0:01:43.9]} 17... Bf5 {[%clk 0:02:55.7]} 18. Bd3
{[%clk 0:01:43.2]} 18... Bg4 {[%clk 0:02:55.9]} 19. Be2 {[%clk 0:01:31.9]} 19...
Bf5 {[%clk 0:02:55.3]} 20. Bd3 {[%clk 0:01:31.8]} 20... Bg4 {[%clk 0:02:55.4]}
1/2-1/2

[Event "*** SCC Grand Prix: Titled Tuesday Blitz"]
[Site "Chess.com"]
[Date "2020.07.14"]
[Round "7"]
[White "ckgchess"]
[Black "DariaVoit"]
[Result "0-1"]
[WhiteElo "2643"]
[BlackElo "2500"]
[TimeControl "180+1"]
[EndTime "11:15:23 PDT"]
[Termination "DariaVoit won by resignation"]

1. e4 {[%clk 0:03:00.6]} 1... e6 {[%clk 0:03:00]} 2. d3 {[%clk 0:02:59.6]} 2...
d5 {[%clk 0:02:58.5]} 3. Nd2 {[%clk 0:03:00.5]} 3... c5 {[%clk 0:02:58.7]} 4.
Ngf3 {[%clk 0:02:59.8]} 4... Nc6 {[%clk 0:02:59.2]} 5. g3 {[%clk 0:02:56.2]}
5... g6 {[%clk 0:02:59.5]} 6. Bg2 {[%clk 0:02:55.2]} 6... Bg7 {[%clk 0:03:00.1]}
7. O-O {[%clk 0:02:55.8]} 7... Nge7 {[%clk 0:02:57.4]} 8. h4 {[%clk 0:02:56.1]}
8... h6 {[%clk 0:02:55.2]} 9. Re1 {[%clk 0:02:55.2]} 9... O-O {[%clk 0:02:53.1]}
10. Nf1 {[%clk 0:02:48.7]} 10... e5 {[%clk 0:02:51]} 11. exd5 {[%clk 0:02:43.8]}
11... Nxd5 {[%clk 0:02:50.6]} 12. Ne3 {[%clk 0:02:44.7]} 12... Be6 {[%clk
0:02:43.7]} 13. Nc4 {[%clk 0:02:40.7]} 13... Qc7 {[%clk 0:02:42.4]} 14. a4
{[%clk 0:02:40.6]} 14... b6 {[%clk 0:02:37.8]} 15. Nfd2 {[%clk 0:02:39.4]} 15...
Rad8 {[%clk 0:02:34.5]} 16. Ne4 {[%clk 0:02:24.2]} 16... f5 {[%clk 0:02:27.4]}
17. Ned2 {[%clk 0:02:24.6]} 17... Ndb4 {[%clk 0:02:16.8]} 18. Nf3 {[%clk
0:02:05.4]} 18... Bxc4 {[%clk 0:02:13.6]} 0-1

[Event "*** SCC Grand Prix: Titled Tuesday Blitz"]
[Site "Chess.com"]
[Date "2020.07.14"]
[Round "7"]
[White "Duong57"]
[Black "rynos0411"]
[Result "1-0"]
[WhiteElo "2262"]
[BlackElo "2388"]
[TimeControl "180+1"]
[EndTime "11:15:24 PDT"]
[Termination "Duong57 won by resignation"]

1. d4 {[%clk 0:03:00.9]} 1... d5 {[%clk 0:02:57]} 2. c4 {[%clk 0:03:00.2]} 2...
c6 {[%clk 0:02:56.3]} 3. Nf3 {[%clk 0:02:59.3]} 3... Nf6 {[%clk 0:02:55.8]} 4.
Nc3 {[%clk 0:02:58.1]} 4... e6 {[%clk 0:02:55.6]} 5. Bg5 {[%clk 0:02:56.3]} 5...
Nbd7 {[%clk 0:02:54]} 6. e3 {[%clk 0:02:56.1]} 6... Qa5 {[%clk 0:02:53.9]} 7.
Nd2 {[%clk 0:02:55.3]} 7... Bb4 {[%clk 0:02:51.5]} 8. Qc2 {[%clk 0:02:12.6]}
8... dxc4 {[%clk 0:02:39.3]} 9. Bxf6 {[%clk 0:02:11.7]} 9... Nxf6 {[%clk
0:02:40.2]} 10. Nxc4 {[%clk 0:02:11.3]} 10... Qc7 {[%clk 0:02:40.7]} 11. Bd3
{[%clk 0:02:02.3]} 11... c5 {[%clk 0:02:32.9]} 12. O-O {[%clk 0:02:00.3]} 12...
cxd4 {[%clk 0:02:31.3]} 13. Qa4+ {[%clk 0:01:58.4]} 13... Bd7 {[%clk 0:02:29.5]}
14. Qxb4 {[%clk 0:01:58.3]} 14... dxc3 {[%clk 0:02:29.9]} 15. Nd6+ {[%clk
0:01:58]} 15... Kd8 {[%clk 0:02:11.2]} 16. Nxf7+ {[%clk 0:01:57.4]} 16... Kc8
{[%clk 0:02:12.1]} 17. Nxh8 {[%clk 0:01:53.8]} 1-0